bitfinex-derivatives/quotes_BTCF0:USTF0_20240913
["timestamp","ask_amount","ask_price","bid_price","bid_amount"]
[1726188083312,0.11635982,58200.0,58199.0,0.47709854]
[1726188084009,0.11635982,58200.0,58199.0,0.41309854]
[1726188084209,0.11635982,58200.0,58199.0,0.41409854]
[1726188084419,0.11535982,58200.0,58199.0,0.41409854]
[1726188084716,0.11735982,58200.0,58199.0,0.41509854]
[1726188085507,0.18786973,58200.0,58199.0,0.087907]
[1726188087706,0.003,58200.0,58199.0,0.087907]
[1726188089210,0.088906,58200.0,58199.0,0.002]
[1726188089620,0.14164,58200.0,58199.0,0.002]
[1726188090323,0.088906,58200.0,58199.0,0.087907]
[1726188091013,0.003,58200.0,58199.0,0.087907]
[1726188092526,0.05573355,58200.0,58199.0,0.087907]
[1726188092713,0.05573346,58200.0,58199.0,0.087907]
[1726188094113,0.05573346,58200.0,58199.0,0.11946908]
[1726188096715,0.05572804,58200.0,58199.0,1.32085608]
[1726188097520,0.003,58200.0,58199.0,1.32085608]
[1726188098522,0.003,58200.0,58199.0,1.23494908]
[1726188098916,0.05572466,58200.0,58199.0,1.23494908]
[1726188099520,0.05372466,58200.0,58199.0,1.23394908]
[1726188099724,0.05572466,58200.0,58199.0,1.23494908]
[1726188101427,0.003,58200.0,58199.0,1.23494908]
[1726188102918,0.003,58200.0,58199.0,1.32069576]
[1726188102919,0.26723072,58200.0,58199.0,1.32069576]
[1726188103119,0.26723072,58200.0,58199.0,0.446707]
[1726188103313,0.26723072,58200.0,58199.0,1.562187]
[1726188103522,0.26723072,58200.0,58199.0,0.446707]
[1726188103728,0.26723072,58200.0,58199.0,1.59277375]
[1726188103924,0.26723072,58200.0,58199.0,0.74108503]
[1726188104128,0.26723072,58200.0,58199.0,0.22560503]
[1726188104331,0.26723072,58200.0,58199.0,1.34108503]
[1726188104515,0.26723072,58200.0,58199.0,0.22560503]
[1726188105025,0.18784187,58200.0,58199.0,0.22560503]
[1726188107022,0.26723072,58200.0,58199.0,0.22560503]
[1726188108939,0.26723072,58200.0,58199.0,0.11285743]
[1726188109937,0.15558424,58204.0,58199.0,0.3208328]
[1726188110131,0.15558424,58204.0,58202.0,0.10277745]
[1726188110436,0.15558424,58204.0,58203.0,0.13090834]
[1726188111135,0.15558424,58204.0,58203.0,0.21680934]
[1726188111328,0.15858424,58204.0,58203.0,0.21680934]
[1726188111524,0.15858424,58204.0,58203.0,0.21680933]
[1726188112027,0.15958424,58204.0,58203.0,0.21780933]
[1726188112831,0.15858424,58204.0,58203.0,0.21780933]
[1726188113128,0.15858424,58204.0,58203.0,0.21880933]
[1726188113129,0.15958424,58204.0,58203.0,0.21880933]
[1726188114940,0.15958424,58204.0,58203.0,0.32158678]
[1726188115733,0.15958424,58204.0,58203.0,0.21880933]
[1726188116124,0.004,58204.0,58203.0,0.21880933]
[1726188116548,0.004,58204.0,58203.0,0.37813839]
[1726188116738,0.004,58214.0,58213.0,0.085887]
[1726188117038,0.004,58214.0,58213.0,0.29020349]
[1726188117039,0.15558424,58214.0,58213.0,0.29020349]
[1726188117241,0.15558424,58214.0,58213.0,0.47020349]
[1726188117643,0.15558424,58214.0,58213.0,0.31090443]
[1726188117838,0.20830014,58214.0,58213.0,0.18]
[1726188118038,0.21030014,58214.0,58213.0,0.182]
[1726188118338,0.21030014,58214.0,58213.0,0.087887]
[1726188124953,0.21030014,58214.0,58213.0,0.21877027]
[1726188124954,0.15758424,58214.0,58213.0,0.21877027]
[1726188129552,0.15758424,58214.0,58213.0,0.21877044]
[1726188130064,0.15758424,58214.0,58213.0,0.17342163]
[1726188130266,0.15758424,58214.0,58213.0,0.087887]
[1726188132751,0.60426924,58214.0,58213.0,0.002]
[1726188133059,0.71860168,58214.0,58213.0,0.002]
[1726188134260,0.7186028,58214.0,58213.0,0.002]
[1726188137161,0.3578028,58214.0,58213.0,0.002]
[1726188137352,1.0794028,58214.0,58213.0,0.002]
[1726188138371,0.085895,58208.0,58199.0,0.004]
[1726188138571,0.15558424,58201.0,58199.0,0.18]
[1726188138871,0.15558424,58201.0,58199.0,0.265907]
[1726188138872,0.05272748,58200.0,58199.0,0.265907]
[1726188139167,0.15558424,58201.0,58200.0,0.085906]
[1726188139366,0.20831212,58201.0,58200.0,0.085906]
[1726188139967,0.09541591,58201.0,58200.0,0.21681511]
[1726188140268,0.09541591,58201.0,58200.0,0.32681511]
[1726188140766,0.09641591,58201.0,58200.0,0.32681511]
[1726188141367,0.09641591,58201.0,58200.0,0.32781511]
[1726188141553,0.09641591,58201.0,58200.0,0.43054846]
[1726188142364,0.09641591,58201.0,58200.0,0.43154846]
[1726188144069,0.09641591,58201.0,58200.0,0.32881511]
[1726188146670,0.09641591,58201.0,58200.0,0.21881511]
[1726188148876,0.09641591,58201.0,58200.0,0.21882122]
[1726188149370,0.09641591,58201.0,58200.0,0.30440067]
[1726188149575,0.09641591,58201.0,58200.0,0.21882122]
[1726188150076,0.09641591,58201.0,58200.0,0.32882122]
[1726188151876,0.09641591,58201.0,58200.0,0.41472722]
[1726188152080,0.09641591,58201.0,58200.0,0.51746057]
[1726188152277,0.09641591,58201.0,58200.0,0.41472722]
[1726188153882,0.09641591,58201.0,58200.0,0.41472007]
[1726188154176,0.001,58201.0,58200.0,0.41472007]
[1726188154974,0.31882302,58205.0,58204.0,0.0859]
[1726188155276,0.3715504,58205.0,58204.0,0.2818]
[1726188156482,0.3725504,58205.0,58204.0,0.2828]
[1726188156774,0.3725504,58205.0,58204.0,0.2838]
[1726188160977,0.3725504,58205.0,58204.0,0.31456911]
[1726188163079,0.31982302,58205.0,58204.0,0.60480284]
[1726188163683,0.31982302,58205.0,58204.0,0.60479736]
[1726188164067,0.001,58205.0,58204.0,0.60479736]
[1726188166372,0.09641591,58205.0,58204.0,0.51889736]
[1726188166582,0.09641591,58205.0,58204.0,0.40889736]
[1726188166882,0.09641591,58205.0,58204.0,0.24956942]
[1726188167067,0.09641591,58205.0,58204.0,0.40890054]
[1726188168584,0.09641591,58205.0,58204.0,0.40890343]
[1726188169980,0.15058498,58205.0,58204.0,0.24957216]
[1726188170184,0.37351242,58205.0,58204.0,0.11866911]
[1726188170569,0.15058498,58205.0,58204.0,0.11866911]
[1726188171378,0.37380168,58205.0,58204.0,0.11866911]
[1726188172278,0.15058498,58205.0,58204.0,0.11866911]
[1726188177683,0.15058498,58205.0,58204.0,0.0879]
[1726188177889,0.15058498,58205.0,58204.0,0.002]
[1726188178192,0.10185043,58205.0,58204.0,0.13291361]
[1726188178486,0.18774843,58205.0,58204.0,0.13291225]
[1726188178786,0.18774843,58205.0,58204.0,0.002]
[1726188179196,0.54854843,58205.0,58204.0,0.002]
[1726188179793,0.65854843,58205.0,58204.0,0.002]
[1726188180183,0.54854843,58205.0,58204.0,0.002]
[1726188181188,0.54854843,58205.0,58204.0,0.0879]
[1726188182974,0.5788865,58205.0,58204.0,0.0879]
[1726188183187,0.4929885,58205.0,58204.0,0.0879]
[1726188184595,0.5788865,58205.0,58204.0,0.0879]
[1726188184795,0.4929885,58205.0,58204.0,0.0879]
[1726188189692,0.5788865,58205.0,58204.0,0.0879]
[1726188189893,0.5788865,58205.0,58204.0,0.002]
[1726188193090,0.69323602,58205.0,58204.0,0.002]
[1726188194195,0.69323602,58205.0,58204.0,0.0879]
[1726188197095,0.60733802,58205.0,58204.0,0.0879]
[1726188198498,0.51139995,58205.0,58204.0,0.1979]
[1726188200192,0.35407291,58205.0,58204.0,0.32880954]
[1726188200496,0.35407291,58205.0,58204.0,0.35964131]
[1726188201200,0.35407291,58205.0,58204.0,0.35964338]
[1726188202593,0.35407291,58205.0,58204.0,0.21881161]
[1726188208201,0.40679994,58205.0,58204.0,0.0879]
[1726188211898,0.05272703,58205.0,58204.0,0.0879]
[1726188215207,0.3608,58208.0,58204.0,0.0879]
[1726188215208,0.30063223,58208.0,58205.0,0.085897]
[1726188215407,0.30063223,58208.0,58206.0,0.29024363]
[1726188215605,0.30063223,58208.0,58207.0,0.29024363]
[1726188215906,0.30063223,58208.0,58207.0,0.29024609]
[1726188216290,0.30063223,58208.0,58207.0,0.37614209]
[1726188217099,0.30063223,58208.0,58207.0,0.37714209]
[1726188218106,0.30063223,58208.0,58207.0,0.37814209]
[1726188219100,0.085894,58209.0,58208.0,0.085894]
[1726188219296,0.446694,58209.0,58208.0,0.21680236]
[1726188220200,0.446694,58209.0,58208.0,0.21780236]
[1726188220602,0.446694,58209.0,58208.0,0.21880236]
[1726188223303,0.56103477,58209.0,58208.0,0.087894]
[1726188225214,0.56103477,58209.0,58208.0,0.002]
[1726188225215,0.67963477,58209.0,58208.0,0.002]
[1726188225808,0.90290672,58209.0,58208.0,0.002]
[1726188226112,0.90290987,58209.0,58208.0,0.002]
[1726188227111,1.41830987,58209.0,58208.0,0.002]
[1726188227315,2.01830987,58209.0,58208.0,0.002]
[1726188227527,2.0888067,58209.0,58208.0,0.002]
[1726188228616,1.4888067,58209.0,58208.0,0.002]
[1726188228807,1.41830987,58209.0,58208.0,0.002]
[1726188230315,1.41830987,58209.0,58208.0,0.13291825]
[1726188230316,0.78856595,58209.0,58208.0,0.13291825]
[1726188230510,0.58407195,58209.0,58208.0,0.37815095]
[1726188232111,0.3608,58209.0,58208.0,0.37815095]
[1726188232609,0.3648,58215.0,58214.0,0.085885]
[1726188232809,0.3648,58215.0,58214.0,0.48614195]
[1726188232810,0.3608,58215.0,58214.0,0.48614195]
[1726188234312,0.3608,58215.0,58214.0,0.48714195]
[1726188234520,0.3608,58215.0,58214.0,0.32780325]
[1726188235411,0.3608,58215.0,58214.0,0.32880325]
[1726188236321,0.3608,58215.0,58214.0,0.43160966]
[1726188236516,0.3608,58215.0,58214.0,0.32880325]
[1726188236821,0.3608,58215.0,58214.0,0.21880325]
[1726188237422,0.3608,58215.0,58214.0,0.32158887]
[1726188238323,0.3608,58215.0,58214.0,0.087885]
[1726188241114,0.3608,58215.0,58214.0,0.002]
[1726188242113,0.3608,58215.0,58214.0,0.087885]
[1726188244125,0.446684,58215.0,58214.0,0.002]
[1726188244926,1.562004,58215.0,58214.0,0.002]
[1726188245132,1.647888,58215.0,58214.0,0.002]
[1726188245423,1.83271168,58215.0,58214.0,0.002]
[1726188247228,1.83271248,58215.0,58214.0,0.002]
[1726188247433,0.085897,58206.0,58205.0,0.004]
[1726188247617,0.60942207,58206.0,58198.0,0.49684]
[1726188247829,0.18863066,58200.0,58199.0,0.085907]
[1726188248028,0.05272507,58200.0,58198.0,0.49692]
[1726188248227,0.24135868,58199.0,58198.0,0.4948]
[1726188248527,0.18863361,58199.0,58198.0,0.4948]
[1726188248728,0.05272507,58199.0,58198.0,0.4948]
[1726188248919,0.05272892,58199.0,58198.0,0.4948]
[1726188249316,0.05272892,58199.0,58198.0,0.4958]
[1726188250116,0.05272892,58199.0,58198.0,0.581709]
[1726188250322,0.05272892,58199.0,58198.0,0.691709]
[1726188250823,0.05172892,58199.0,58198.0,0.691709]
[1726188251331,0.05272892,58199.0,58198.0,0.692709]
[1726188253331,0.17160789,58205.0,58202.0,0.085903]
[1726188253332,0.06702127,58205.0,58202.0,0.085903]
[1726188253528,0.06702127,58205.0,58203.0,0.23368442]
[1726188253728,0.06702127,58205.0,58204.0,0.13091323]
[1726188254523,0.002,58205.0,58204.0,0.31958442]
[1726188254927,0.004,58205.0,58204.0,0.21781323]
[1726188255125,0.3628,58205.0,58204.0,0.32057625]
[1726188255341,0.3648,58205.0,58204.0,0.32157625]
[1726188257128,0.004,58205.0,58204.0,0.32157625]
[1726188257328,0.3648,58205.0,58204.0,0.32157625]
[1726188257529,0.004,58205.0,58204.0,0.32157625]
[1726188257830,0.3648,58205.0,58204.0,0.32157625]
[1726188258629,0.3648,58205.0,58204.0,0.32157362]
[1726188260136,0.3648,58205.0,58204.0,0.35242535]
[1726188260431,0.05672858,58205.0,58204.0,0.11875173]
[1726188260635,0.05672686,58205.0,58204.0,0.11875173]
[1726188261034,0.05672715,58205.0,58204.0,0.0879]
[1726188263042,0.41752715,58205.0,58204.0,0.0879]
[1726188263232,0.05672715,58205.0,58204.0,0.0879]
[1726188263428,0.41752834,58205.0,58204.0,0.0879]
[1726188264435,0.05672834,58205.0,58204.0,0.0879]
[1726188264639,0.41752834,58205.0,58204.0,0.0879]
[1726188268235,0.41752928,58205.0,58204.0,0.0879]
[1726188268429,0.3648,58205.0,58204.0,0.2188126]
[1726188268635,0.4748,58205.0,58204.0,0.2188126]
[1726188269133,0.114,58205.0,58204.0,0.2188126]
[1726188269337,0.4748,58205.0,58204.0,0.2188126]
[1726188270546,0.3648,58205.0,58204.0,0.2188126]
[1726188272742,0.3648,58205.0,58204.0,0.37815635]
[1726188273142,0.3648,58205.0,58204.0,0.2188126]
[1726188273445,0.3648,58205.0,58204.0,0.37815615]
[1726188278154,0.3648,58205.0,58204.0,0.37815508]
[1726188283449,0.3648,58205.0,58204.0,0.0879]
[1726188283450,0.41752963,58205.0,58204.0,0.0879]
[1726188284155,0.05672963,58205.0,58204.0,0.0879]
[1726188284342,0.41752963,58205.0,58204.0,0.0879]
[1726188285043,0.3648,58205.0,58204.0,0.0879]
[1726188286147,0.41752964,58205.0,58204.0,0.0879]
[1726188286348,0.4791438,58205.0,58204.0,0.0879]
[1726188286558,0.41752964,58205.0,58204.0,0.0879]
[1726188287354,0.3648,58205.0,58204.0,0.0879]
[1726188287656,0.41752929,58205.0,58204.0,0.0879]
[1726188288261,0.3648,58205.0,58204.0,0.0879]
[1726188288659,0.4748,58205.0,58204.0,0.0879]
[1726188289160,0.58914347,58205.0,58204.0,0.0879]
[1726188289456,0.67504147,58205.0,58204.0,0.002]
[1726188289762,0.80824147,58205.0,58204.0,0.002]
[1726188290657,0.80824147,58205.0,58204.0,0.0879]
[1726188291156,0.693898,58205.0,58204.0,0.0879]
[1726188292351,0.333098,58205.0,58204.0,0.0879]
[1726188292551,0.693898,58205.0,58204.0,0.0879]
[1726188296058,0.693898,58205.0,58204.0,0.17369613]
[1726188296256,0.693898,58205.0,58204.0,0.08779613]
[1726188298172,0.779796,58205.0,58204.0,0.08779613]
[1726188301171,0.89414938,58205.0,58204.0,0.002]
[1726188301959,0.89414938,58205.0,58185.0,0.11]
[1726188301960,0.085913,58195.0,58184.0,0.3608]
[1726188302166,0.085916,58194.0,58193.0,0.085915]
[1726188302476,0.13865005,58194.0,58193.0,0.085915]
[1726188303363,0.05273405,58194.0,58193.0,0.085915]
[1726188303570,0.05173405,58194.0,58193.0,0.085915]
[1726188303958,0.05273405,58194.0,58193.0,0.085915]
[1726188304160,0.05373405,58194.0,58193.0,0.086915]
[1726188304358,0.002,58194.0,58193.0,0.086915]
[1726188305372,0.31981131,58195.0,58193.0,0.32086211]
[1726188305573,0.40572431,58195.0,58194.0,0.13094357]
[1726188306566,0.40872431,58195.0,58194.0,0.13094357]
[1726188306773,0.41172431,58195.0,58194.0,0.13194357]
[1726188307170,0.40872431,58195.0,58194.0,0.13194357]
[1726188307472,0.32581131,58195.0,58194.0,0.32086211]
[1726188307679,0.03643767,58195.0,58194.0,0.43086211]
[1726188307980,0.03643767,58195.0,58194.0,0.21785857]
[1726188308178,0.14643767,58195.0,58194.0,0.21785857]
[1726188308868,0.004,58202.0,58194.0,0.67502507]
[1726188309063,0.3648,58205.0,58204.0,0.0859]
[1726188309266,0.3608,58205.0,58204.0,0.31964907]
[1726188309475,0.3608,58205.0,58204.0,0.21684357]
[1726188309772,0.4708,58205.0,58204.0,0.3196459]
[1726188310478,0.4718,58205.0,58204.0,0.3206459]
[1726188310870,0.4718,58205.0,58204.0,0.3216459]
[1726188312376,0.4718,58205.0,58204.0,0.21884357]
[1726188312773,0.4718,58205.0,58204.0,0.3216459]
[1726188313169,0.4718,58205.0,58204.0,0.21884357]
[1726188313375,0.58614834,58205.0,58204.0,0.0879]
[1726188313863,0.67204634,58205.0,58204.0,0.002]
[1726188318577,0.67204986,58205.0,58204.0,0.002]
[1726188318966,0.75794786,58205.0,58204.0,0.002]
[1726188320184,0.82794786,58205.0,58204.0,0.002]
[1726188320474,0.713596,58205.0,58204.0,0.002]
[1726188320885,0.627698,58205.0,58204.0,0.0879]
[1726188321273,0.627698,58205.0,58204.0,0.17357265]
[1726188322081,0.627698,58205.0,58204.0,0.0879]
[1726188322283,0.627698,58205.0,58204.0,0.17357265]
[1726188323183,0.627698,58205.0,58204.0,0.08767265]
[1726188327070,0.3618,58205.0,58204.0,0.30449619]
[1726188327277,0.3618,58205.0,58204.0,0.21882354]
[1726188328381,0.447698,58205.0,58204.0,0.0879]
[1726188335386,0.56204805,58205.0,58204.0,0.0879]
[1726188341592,0.56204805,58205.0,58204.0,0.002]
[1726188342200,0.67204805,58205.0,58204.0,0.002]
[1726188342595,0.085909,58198.0,58197.0,0.08591]
[1726188342799,0.52353252,58198.0,58190.0,0.3608]
[1726188343104,0.11,58191.0,58190.0,0.446721]
[1726188343290,0.16273252,58191.0,58190.0,0.446721]
[1726188343493,0.11,58191.0,58190.0,0.57765581]
[1726188343804,0.085914,58195.0,58193.0,0.085916]
[1726188344103,0.085914,58195.0,58194.0,0.13093481]
[1726188344995,0.085914,58195.0,58194.0,0.21684981]
[1726188345503,0.195914,58195.0,58194.0,0.21684981]
[1726188345703,0.556714,58195.0,58194.0,0.21684981]
[1726188346206,0.001,58195.0,58194.0,0.21684981]
[1726188346697,0.001,58195.0,58194.0,0.31985795]
[1726188346899,0.001,58195.0,58194.0,0.32085795]
[1726188347106,0.001,58195.0,58194.0,0.21784981]
[1726188347801,0.111,58195.0,58194.0,0.21784981]
[1726188348002,0.111,58195.0,58194.0,0.2178441]
[1726188350107,0.001,58195.0,58194.0,0.2178441]
[1726188350308,0.18,58196.0,58195.0,0.085913]
[1726188350805,0.085913,58195.0,58194.0,0.001]
[1726188351110,0.13865188,58195.0,58194.0,0.001]
[1726188351506,0.13865188,58195.0,58192.0,0.085918]
[1726188351507,0.13765188,58195.0,58192.0,0.085918]
[1726188351701,0.13865488,58194.0,58192.0,0.085918]
[1726188351901,0.085916,58194.0,58192.0,0.085918]
[1726188352197,0.084916,58194.0,58192.0,0.085918]
[1726188353805,0.085916,58194.0,58192.0,0.086918]
[1726188355012,0.3608,58193.0,58192.0,0.086918]
[1726188357503,0.3618,58193.0,58192.0,0.086918]
[1726188358512,0.30161546,58193.0,58192.0,0.37724392]
[1726188360216,0.38753146,58193.0,58192.0,0.37724392]
[1726188364424,0.03141088,58198.0,58197.0,0.08591]
[1726188364713,0.085909,58198.0,58197.0,0.21685436]
[1726188364915,0.085909,58198.0,58197.0,0.37622093]
[1726188365105,0.085909,58198.0,58197.0,0.37622043]
[1726188365302,0.085909,58198.0,58197.0,0.37622093]
[1726188365505,0.20126888,58198.0,58197.0,0.08691]
[1726188365702,0.20126888,58198.0,58197.0,0.08791]
[1726188367228,0.11535988,58198.0,58197.0,0.08791]
[1726188367717,0.29535988,58198.0,58197.0,0.08791]
[1726188369913,0.11535988,58198.0,58197.0,0.08791]
[1726188370104,0.16373705,58198.0,58197.0,0.08791]
[1726188371314,0.05373705,58198.0,58197.0,0.19791]
[1726188371722,0.05373705,58198.0,58197.0,0.08791]
[1726188373518,0.001,58198.0,58197.0,0.21883605]
[1726188380125,0.004,58205.0,58197.0,0.37817635]
[1726188380324,0.19589,58211.0,58204.0,0.11]
[1726188380325,0.118,58208.0,58204.0,0.11]
[1726188380631,0.11,58208.0,58207.0,0.06858098]
[1726188381125,0.11,58208.0,58207.0,0.085896]
[1726188381622,0.001,58208.0,58207.0,0.085896]
[1726188381930,0.111,58208.0,58207.0,0.085896]
[1726188382524,0.111,58208.0,58207.0,0.086896]
[1726188383222,0.11,58208.0,58207.0,0.087896]
[1726188388335,0.11,58208.0,58207.0,0.15647698]
[1726188388736,0.1627279,58208.0,58207.0,0.087896]
[1726188389643,0.1627279,58208.0,58207.0,0.002]
[1726188389644,0.2486219,58208.0,58207.0,0.002]
[1726188390331,0.085905,58201.0,58195.0,0.3608]
[1726188390532,0.1627279,58200.0,58195.0,0.3608]
[1726188390739,0.11,58196.0,58195.0,0.3608]
[1726188391039,0.1627279,58196.0,58195.0,0.39121638]
[1726188391427,0.1627279,58196.0,58195.0,0.03041638]
[1726188391630,0.1627279,58196.0,58189.0,0.3608]
[1726188391833,0.0517279,58195.0,58189.0,0.3608]
[1726188392028,0.11,58196.0,58195.0,0.085913]
[1726188392638,0.11,58196.0,58195.0,0.086913]
[1726188392934,0.111,58196.0,58195.0,0.087913]
[1726188394129,0.17261213,58196.0,58195.0,0.087913]
[1726188395224,0.06261213,58196.0,58195.0,0.087913]
[1726188395634,0.06701833,58200.0,58195.0,0.29227672]
[1726188395829,0.06701833,58200.0,58198.0,0.085908]
[1726188396042,0.06701833,58200.0,58199.0,0.13092217]
[1726188396544,0.06701833,58200.0,58199.0,0.21682917]
[1726188397043,0.06701833,58200.0,58199.0,0.37618046]
[1726188397246,0.06801833,58200.0,58199.0,0.21682917]
[1726188397749,0.06901833,58200.0,58199.0,0.21682917]
[1726188398244,0.06901833,58200.0,58199.0,0.37618199]
[1726188398539,0.06901833,58200.0,58199.0,0.21782917]
[1726188399442,0.06801833,58200.0,58199.0,0.21882917]
[1726188400235,0.06801833,58200.0,58199.0,0.37818554]
[1726188401241,0.001,58200.0,58199.0,0.37818554]
[1726188403737,0.0537301,58200.0,58199.0,0.087907]
[1726188405137,0.05373005,58200.0,58199.0,0.087907]
[1726188406745,0.22538255,58200.0,58199.0,0.087907]
[1726188406943,0.05373005,58200.0,58199.0,0.087907]
[1726188407545,0.22538255,58200.0,58199.0,0.087907]
[1726188407947,0.05373005,58200.0,58199.0,0.173814]
[1726188408243,0.05373005,58200.0,58199.0,0.240014]
[1726188410651,0.001,58200.0,58199.0,0.47386908]
[1726188411450,0.001,58200.0,58199.0,0.47386909]
[1726188413040,0.001,58200.0,58199.0,0.37092345]
[1726188413947,0.001,58200.0,58199.0,0.73172345]
[1726188415447,0.001,58200.0,58199.0,0.37092345]
[1726188415750,0.001,58200.0,58199.0,0.73172345]
[1726188416145,0.001,58200.0,58199.0,0.64581645]
[1726188418354,0.001,58200.0,58199.0,0.80515553]
[1726188420056,0.001,58200.0,58199.0,0.44435553]
[1726188420360,0.001,58200.0,58199.0,0.80515556]
[1726188421358,0.001,58200.0,58199.0,0.73895556]
[1726188423652,0.001,58200.0,58199.0,0.73895561]
[1726188424654,0.001,58200.0,58199.0,0.57961649]
[1726188425855,0.001,58200.0,58199.0,0.448707]
[1726188426269,0.05372903,58200.0,58199.0,0.644614]
[1726188426554,0.05372903,58200.0,58199.0,0.558707]
[1726188426760,0.05372903,58200.0,58199.0,0.644614]
[1726188426967,0.05372903,58200.0,58199.0,0.558707]
[1726188427254,0.05372903,58200.0,58199.0,0.644614]
[1726188427450,0.05372903,58200.0,58199.0,0.558707]
[1726188428559,0.001,58200.0,58199.0,0.558707]
[1726188429362,0.05372684,58200.0,58199.0,0.558707]
[1726188430756,0.05372684,58200.0,58199.0,0.197907]
[1726188430951,0.05372684,58200.0,58199.0,0.558707]
[1726188431152,0.24264202,58200.0,58199.0,0.197907]
[1726188431647,0.24264202,58200.0,58199.0,0.558707]
[1726188432463,0.24264202,58200.0,58199.0,0.644614]
[1726188432654,0.05372684,58200.0,58199.0,0.644614]
[1726188433558,0.05372844,58200.0,58199.0,0.644614]
[1726188433759,0.001,58200.0,58199.0,0.93486487]
[1726188433963,0.008,58206.0,58199.0,0.76305087]
[1726188434270,0.0711,58209.0,58208.0,0.085894]
[1726188434450,0.0711,58209.0,58208.0,0.32680451]
[1726188435750,0.4356,58216.0,58212.0,0.085888]
[1726188435963,0.52926524,58216.0,58212.0,0.28169401]
[1726188436164,0.52926524,58216.0,58212.0,0.41258775]
[1726188436372,0.52926524,58216.0,58212.0,0.28169401]
[1726188436565,0.4987,58216.0,58212.0,0.28169401]
[1726188436761,0.49958,58216.0,58212.0,0.28169401]
[1726188437462,0.13878,58216.0,58212.0,0.68757894]
[1726188437661,0.13878,58216.0,58215.0,0.195884]
[1726188437662,0.1379,58216.0,58215.0,0.195884]
[1726188438072,0.1379,58216.0,58215.0,0.2816478]
[1726188438374,0.1379,58216.0,58215.0,0.195884]
[1726188438673,0.1379,58216.0,58215.0,0.086884]
[1726188439071,0.0711,58216.0,58215.0,0.086884]
[1726188439271,0.4329,58222.0,58221.0,0.085875]
[1726188439463,0.4329,58222.0,58221.0,0.195875]
[1726188439663,0.0721,58222.0,58221.0,0.195875]
[1726188440263,0.0721,58222.0,58221.0,0.26439862]
[1726188440573,0.072,58226.0,58225.0,0.085869]
[1726188440878,0.072,58226.0,58225.0,0.03989375]
[1726188440879,0.1863087,58226.0,58225.0,0.03989375]
[1726188441678,0.1863087,58226.0,58225.0,0.14989375]
[1726188441964,0.1863087,58226.0,58225.0,0.04089375]
[1726188442371,0.1863087,58226.0,58225.0,0.04189375]
[1726188443064,0.2963087,58226.0,58225.0,0.04189375]
[1726188443266,0.1863087,58226.0,58225.0,0.04189375]
[1726188443771,0.4090019,58226.0,58225.0,0.04189375]
[1726188444168,0.1863087,58226.0,58225.0,0.04189375]
[1726188444672,0.1863087,58226.0,58225.0,0.04089375]
[1726188445177,0.1863087,58226.0,58225.0,0.04189375]
[1726188446870,0.1863087,58226.0,58225.0,0.002]
[1726188447071,0.1863087,58226.0,58225.0,0.001]
[1726188447259,0.1863087,58226.0,58225.0,0.087869]
[1726188448265,0.1143087,58226.0,58225.0,0.087869]
[1726188448672,0.05271345,58226.0,58225.0,0.087869]
[1726188448980,0.3608,58229.0,58228.0,0.085865]
[1726188449764,0.11,58235.0,58233.0,0.085857]
[1726188450963,0.11,58235.0,58233.0,0.086857]
[1726188451159,0.14102768,58235.0,58233.0,0.002]
[1726188451364,0.22688168,58235.0,58233.0,0.002]
[1726188452072,0.22688168,58235.0,58233.0,0.087856]
[1726188452377,0.22688168,58235.0,58234.0,0.085856]
[1726188453669,0.22688168,58235.0,58234.0,0.086856]
[1726188453865,0.22688168,58235.0,58234.0,0.087856]
[1726188455476,0.58768168,58235.0,58234.0,0.087856]
[1726188455871,0.7019796,58235.0,58224.0,0.49963991]
[1726188456173,0.11,58228.0,58224.0,0.41432302]
[1726188456384,0.18476833,58227.0,58224.0,0.41432302]
[1726188456679,0.18476833,58226.0,58224.0,0.44498138]
[1726188456878,0.27446305,58227.0,58224.0,0.08418138]
[1726188456879,0.18476833,58225.0,58224.0,0.08418138]
[1726188457076,0.18476833,58225.0,58224.0,0.44498138]
[1726188457576,0.18476833,58225.0,58224.0,0.08518138]
[1726188457768,0.18476833,58225.0,58224.0,0.44598138]
[1726188458080,0.18476833,58225.0,58224.0,0.44698138]
[1726188459581,0.18576833,58225.0,58224.0,0.44698138]
[1726188460775,0.10629792,58225.0,58224.0,1.04809138]
[1726188460978,9.2e-07,58225.0,58224.0,1.73396138]
[1726188461175,0.004,58233.0,58232.0,0.085859]
[1726188461379,0.004,58240.0,58239.0,0.085848]
[1726188461582,0.3608,58241.0,58240.0,0.085847]
[1726188463576,0.3608,58241.0,58233.0,0.2079]
[1726188463577,0.18047041,58244.0,58243.0,0.085842]
[1726188463981,0.11,58244.0,58243.0,0.085842]
[1726188464779,0.11,58244.0,58243.0,0.086842]
[1726188465175,0.46090425,58246.0,58244.0,0.085841]
[1726188465376,0.11,58245.0,58244.0,0.085841]
[1726188466082,0.46090425,58246.0,58243.0,0.111]
[1726188466379,0.3608,58246.0,58245.0,0.195839]
[1726188467582,0.3608,58246.0,58245.0,0.196839]
[1726188467771,0.3618,58246.0,58245.0,0.22862765]
[1726188468670,0.3618,58246.0,58245.0,0.11862765]
[1726188470187,0.001,58246.0,58245.0,0.11862765]
[1726188470575,0.11,58247.0,58246.0,0.085838]
[1726188471778,0.11,58247.0,58246.0,0.086838]
[1726188472485,0.264637,58247.0,58246.0,0.002]
[1726188472683,0.408337,58247.0,58246.0,0.002]
[1726188477985,0.52259801,58247.0,58246.0,0.002]
[1726188478783,0.52259801,58247.0,58246.0,0.087838]
[1726188479183,0.45129801,58247.0,58246.0,0.087838]
[1726188481382,0.37889801,58247.0,58246.0,0.087838]
[1726188481587,0.18306101,58247.0,58246.0,0.087838]
[1726188481896,0.22526101,58247.0,58246.0,0.087838]
[1726188483383,0.31109801,58247.0,58246.0,0.002]
[1726188484398,0.31109801,58247.0,58246.0,0.00174787]
[1726188484993,0.31009801,58247.0,58246.0,0.001]
[1726188485193,0.31109801,58247.0,58246.0,0.002]
[1726188485891,0.196837,58247.0,58246.0,0.002]
[1726188488599,0.086837,58247.0,58246.0,0.002]
[1726188488789,0.196837,58247.0,58246.0,0.002]
[1726188489195,1.311877,58247.0,58246.0,0.002]